[Event "Titled Tuesday Blitz July 6 2021"]
[White "Hryshchenko, Kamila"]
[Black "Elgersma, Onno"]
[WhiteFideId "14147491"]
[BlackFideId "1053531"]
[WhiteElo "1966"]
[BlackElo "2485"]
[Result "0-1"]
[Round "06"]
[TimeControl "180+1"]
[Date "2021.07.06"]
[WhiteClock "0:00:06"]
[BlackClock "0:00:10"]

1. e4 {[%clk 0:03:00]}  c5 {[%clk 0:02:59]} 2. Nf3 {[%clk 0:03:00]}  e6 {[%clk 0:03:00]} 3. Be2 {[%clk 0:02:59]}  Nc6 {[%clk 0:03:00]} 4. d4 {[%clk 0:02:57]}  cxd4 {[%clk 0:02:59]} 5. Nxd4 {[%clk 0:02:58]}  a6 {[%clk 0:02:58]} 6. Nc3 {[%clk 0:02:50]}  Nf6 {[%clk 0:02:58]} 7. Nxc6 {[%clk 0:02:48]}  bxc6 {[%clk 0:02:58]} 8. e5 {[%clk 0:02:49]}  Nd5 {[%clk 0:02:58]} 9. Ne4 {[%clk 0:02:49]}  Qc7 {[%clk 0:02:38]} 10. c4 {[%clk 0:02:47]}  Qxe5 {[%clk 0:02:32]} 11. cxd5 {[%clk 0:02:08]}  Qxe4 {[%clk 0:02:31]} 12. dxe6 {[%clk 0:02:02]}  fxe6 {[%clk 0:02:08]} 13. O-O {[%clk 0:02:01]}  Bc5 {[%clk 0:02:08]} 14. Bd3 {[%clk 0:02:00]}  Qh4 {[%clk 0:02:02]} 15. g3 {[%clk 0:01:54]}  Qh3 {[%clk 0:02:02]} 16. b4 {[%clk 0:01:48]}  Ba7 {[%clk 0:01:50]} 17. Qf3 {[%clk 0:01:42]}  d5 {[%clk 0:00:48]} 18. Bb2 {[%clk 0:01:35]}  Rf8 {[%clk 0:00:47]} 19. Qe2 {[%clk 0:01:35]}  Bd7 {[%clk 0:00:43]} 20. Rae1 {[%clk 0:01:04]}  Rf7 {[%clk 0:00:39]} 21. Bxa6 {[%clk 0:00:36]}  Kf8 {[%clk 0:00:38]} 22. Bd3 {[%clk 0:00:34]}  Kg8 {[%clk 0:00:38]} 23. a4 {[%clk 0:00:34]}  Raf8 {[%clk 0:00:37]} 24. Be5 {[%clk 0:00:32]}  Rxf2 {[%clk 0:00:31]} 25. Rxf2 {[%clk 0:00:31]}  Rxf2 {[%clk 0:00:31]} 26. Qxf2 {[%clk 0:00:24]}  Bxf2+ {[%clk 0:00:31]} 27. Kxf2 {[%clk 0:00:25]}  Qxh2+ {[%clk 0:00:30]} 28. Kf3 {[%clk 0:00:25]}  c5 {[%clk 0:00:26]} 29. bxc5 {[%clk 0:00:25]}  d4 {[%clk 0:00:20]} 30. Be4 {[%clk 0:00:22]}  Qh5+ {[%clk 0:00:16]} 31. g4 {[%clk 0:00:22]}  Qh3+ {[%clk 0:00:15]} 32. Bg3 {[%clk 0:00:23]}  e5 {[%clk 0:00:15]} 33. c6 {[%clk 0:00:20]}  Qxg4+ {[%clk 0:00:13]} 34. Kf2 {[%clk 0:00:20]}  Be6 {[%clk 0:00:08]} 35. Bxe5 {[%clk 0:00:17]}  h5 {[%clk 0:00:04]} 36. c7 {[%clk 0:00:16]}  h4 {[%clk 0:00:03]} 37. Bf3 {[%clk 0:00:10]}  Qf5 {[%clk 0:00:04]} 38. Bxd4 {[%clk 0:00:09]}  h3 {[%clk 0:00:04]} 39. Re5 {[%clk 0:00:09]}  Qc2+ {[%clk 0:00:03]} 40. Kg3 {[%clk 0:00:09]}  Bd7 {[%clk 0:00:04]} 41. Re7 {[%clk 0:00:08]}  Qg6+ {[%clk 0:00:04]} 42. Kf2 {[%clk 0:00:06]}  Qc2+ {[%clk 0:00:04]} 43. Be2 {[%clk 0:00:06]}  Qxc7 {[%clk 0:00:04]} 44. Rxg7+ {[%clk 0:00:06]}  Kf8 {[%clk 0:00:05]} 45. Bf3 {[%clk 0:00:05]}  Qf4 {[%clk 0:00:05]} 46. Rxd7 {[%clk 0:00:03]}  h2 {[%clk 0:00:06]} 47. Bc5+ {[%clk 0:00:03]}  Ke8 {[%clk 0:00:05]} 48. Re7+ {[%clk 0:00:03]}  Kd8 {[%clk 0:00:06]} 49. Re1 {[%clk 0:00:03]}  Qd2+ {[%clk 0:00:06]} 50. Re2 {[%clk 0:00:03]}  Qc3 {[%clk 0:00:05]} 51. Be3 {[%clk 0:00:03]}  Qf6 {[%clk 0:00:05]} 52. Rd2+ {[%clk 0:00:03]}  Ke8 {[%clk 0:00:05]} 53. Bd4 {[%clk 0:00:03]}  Qxf3+ {[%clk 0:00:05]} 54. Kxf3 {[%clk 0:00:04]}  h1=Q+ {[%clk 0:00:06]} 55. Ke3 {[%clk 0:00:04]}  Qa8 {[%clk 0:00:07]} 56. Kd3 {[%clk 0:00:05]}  Kd7 {[%clk 0:00:07]} 57. Ra2 {[%clk 0:00:04]}  Qf3+ {[%clk 0:00:06]} 58. Kc4 {[%clk 0:00:04]}  Qf7+ {[%clk 0:00:07]} 59. Kb4 {[%clk 0:00:05]}  Qxa2 {[%clk 0:00:07]} 60. a5 {[%clk 0:00:05]}  Kc6 {[%clk 0:00:08]} 61. Bb6 {[%clk 0:00:05]}  Qb2+ {[%clk 0:00:08]} 62. Kc4 {[%clk 0:00:06]}  Qb5+ {[%clk 0:00:08]} 63. Kd4 {[%clk 0:00:06]}  Qd5+ {[%clk 0:00:09]} 64. Ke3 {[%clk 0:00:06]}  Kb5 {[%clk 0:00:09]} 65. Kf4 {[%clk 0:00:07]}  Kc4 {[%clk 0:00:10]} 66. a6 {[%clk 0:00:06]}  Qd6+ {[%clk 0:00:10]} 67. Ke3 {[%clk 0:00:06]}  Qxb6+ {[%clk 0:00:10]} 0-1


[Site "https://www.chess.com"]

[Event "Titled Tuesday Blitz July 6 2021"]
[White "Ibrahimli, Murad"]
[Black "Novikov, Evgenij"]
[WhiteFideId "13410229"]
[BlackFideId "4125380"]
[WhiteElo "2109"]
[BlackElo "2242"]
[Result "1/2-1/2"]
[Round "06"]
[TimeControl "180+1"]
[Date "2021.07.06"]
[WhiteClock "0:00:24"]
[BlackClock "0:00:03"]

1. e4 {[%clk 0:03:00]}  c5 {[%clk 0:02:58]} 2. Nf3 {[%clk 0:03:00]}  d6 {[%clk 0:02:58]} 3. d4 {[%clk 0:02:59]}  cxd4 {[%clk 0:02:59]} 4. Nxd4 {[%clk 0:03:00]}  Nf6 {[%clk 0:02:59]} 5. Nc3 {[%clk 0:03:01]}  a6 {[%clk 0:03:00]} 6. Rg1 {[%clk 0:03:00]}  e6 {[%clk 0:02:55]} 7. g4 {[%clk 0:02:57]}  h6 {[%clk 0:02:54]} 8. h4 {[%clk 0:02:53]}  g6 {[%clk 0:02:45]} 9. g5 {[%clk 0:02:52]}  hxg5 {[%clk 0:02:45]} 10. Bxg5 {[%clk 0:02:50]}  Be7 {[%clk 0:02:39]} 11. Qd2 {[%clk 0:02:50]}  Nc6 {[%clk 0:02:37]} 12. O-O-O {[%clk 0:02:48]}  Qb6 {[%clk 0:01:58]} 13. Nb3 {[%clk 0:02:39]}  Bd7 {[%clk 0:01:38]} 14. Be2 {[%clk 0:02:24]}  Qc7 {[%clk 0:01:12]} 15. f4 {[%clk 0:02:22]}  O-O-O {[%clk 0:01:05]} 16. Bf3 {[%clk 0:02:22]}  Be8 {[%clk 0:00:58]} 17. Kb1 {[%clk 0:02:19]}  Nh5 {[%clk 0:00:54]} 18. Bxe7 {[%clk 0:02:16]}  Qxe7 {[%clk 0:00:53]} 19. Rg5 {[%clk 0:02:11]}  Nf6 {[%clk 0:00:43]} 20. Qf2 {[%clk 0:02:08]}  Nd7 {[%clk 0:00:39]} 21. a3 {[%clk 0:02:00]}  f6 {[%clk 0:00:38]} 22. Rgg1 {[%clk 0:01:57]}  Bf7 {[%clk 0:00:38]} 23. e5 {[%clk 0:01:49]}  d5 {[%clk 0:00:34]} 24. exf6 {[%clk 0:01:41]}  Qxf6 {[%clk 0:00:35]} 25. Rg4 {[%clk 0:01:24]}  Rh6 {[%clk 0:00:33]} 26. Na4 {[%clk 0:01:15]}  Rdh8 {[%clk 0:00:29]} 27. Nb6+ {[%clk 0:01:15]}  Nxb6 {[%clk 0:00:28]} 28. Qxb6 {[%clk 0:01:16]}  Qd8 {[%clk 0:00:27]} 29. Qc5 {[%clk 0:01:05]}  Rxh4 {[%clk 0:00:25]} 30. c4 {[%clk 0:01:04]}  Rxg4 {[%clk 0:00:15]} 31. Bxg4 {[%clk 0:01:03]}  Kb8 {[%clk 0:00:16]} 32. cxd5 {[%clk 0:00:58]}  exd5 {[%clk 0:00:17]} 33. Be2 {[%clk 0:00:53]}  Qf6 {[%clk 0:00:13]} 34. Qb6 {[%clk 0:00:47]}  Rh2 {[%clk 0:00:13]} 35. Rd2 {[%clk 0:00:46]}  Qxf4 {[%clk 0:00:11]} 36. Bxa6 {[%clk 0:00:41]}  Rh1+ {[%clk 0:00:06]} 37. Ka2 {[%clk 0:00:41]}  Qc7 {[%clk 0:00:06]} 38. Qb5 {[%clk 0:00:34]}  d4 {[%clk 0:00:06]} 39. Rf2 {[%clk 0:00:24]}  Ka7 {[%clk 0:00:06]} 40. Bxb7 {[%clk 0:00:23]}  Bxb3+ {[%clk 0:00:04]} 41. Qxb3 {[%clk 0:00:22]}  Qxb7 {[%clk 0:00:04]} 42. Qa4+ {[%clk 0:00:23]}  Qa6 {[%clk 0:00:04]} 43. Rf7+ {[%clk 0:00:23]}  Kb6 {[%clk 0:00:04]} 44. Qb3+ {[%clk 0:00:23]}  Kc5 {[%clk 0:00:04]} 45. Rd7 {[%clk 0:00:23]}  Qc4 {[%clk 0:00:02]} 46. Qxc4+ {[%clk 0:00:21]}  Kxc4 {[%clk 0:00:03]} 47. Rd6 {[%clk 0:00:22]}  Kc5 {[%clk 0:00:03]} 48. Rxg6 {[%clk 0:00:22]}  d3 {[%clk 0:00:04]} 49. Rg5+ {[%clk 0:00:21]}  Kc4 {[%clk 0:00:03]} 50. b3+ {[%clk 0:00:20]}  Kc3 {[%clk 0:00:03]} 51. Rc5+ {[%clk 0:00:20]}  Kd2 {[%clk 0:00:03]} 52. Rxc6 {[%clk 0:00:20]}  Rh2 {[%clk 0:00:02]} 53. a4 {[%clk 0:00:20]}  Ke3+ {[%clk 0:00:02]} 54. Ka3 {[%clk 0:00:20]}  d2 {[%clk 0:00:03]} 55. Re6+ {[%clk 0:00:20]}  Kd3 {[%clk 0:00:02]} 56. Rd6+ {[%clk 0:00:21]}  Kc2 {[%clk 0:00:03]} 57. a5 {[%clk 0:00:20]}  d1=Q {[%clk 0:00:03]} 58. Rxd1 {[%clk 0:00:20]}  Kxd1 {[%clk 0:00:04]} 59. b4 {[%clk 0:00:21]}  Kd2 {[%clk 0:00:02]} 60. Ka4 {[%clk 0:00:21]}  Kc3 {[%clk 0:00:02]} 61. Kb5 {[%clk 0:00:21]}  Rh4 {[%clk 0:00:02]} 62. a6 {[%clk 0:00:21]}  Rxb4+ {[%clk 0:00:03]} 63. Kc6 {[%clk 0:00:22]}  Rb1 {[%clk 0:00:02]} 64. a7 {[%clk 0:00:22]}  Ra1 {[%clk 0:00:02]} 65. Kb7 {[%clk 0:00:23]}  Rxa7+ {[%clk 0:00:03]} 66. Kxa7 {[%clk 0:00:24]} 1/2-1/2


[Site "https://www.chess.com"]

[Event "Titled Tuesday Blitz July 6 2021"]
[White "Jakubowski, Krzysztof"]
[Black "Kukhmazov, Arsen"]
[WhiteFideId "1112848"]
[BlackFideId "24108260"]
[WhiteElo "2462"]
[BlackElo "2453"]
[Result "1-0"]
[Round "06"]
[TimeControl "180+1"]
[Date "2021.07.06"]
[WhiteClock "0:00:04"]
[BlackClock "0:00:09"]

1. e4 {[%clk 0:03:00]}  c6 {[%clk 0:02:59]} 2. d4 {[%clk 0:02:59]}  d5 {[%clk 0:03:00]} 3. exd5 {[%clk 0:02:58]}  cxd5 {[%clk 0:03:01]} 4. Bd3 {[%clk 0:02:57]}  Nc6 {[%clk 0:03:01]} 5. c3 {[%clk 0:02:57]}  Qc7 {[%clk 0:03:02]} 6. Na3 {[%clk 0:02:56]}  a6 {[%clk 0:03:02]} 7. Nc2 {[%clk 0:02:55]}  e6 {[%clk 0:02:59]} 8. Nf3 {[%clk 0:02:49]}  Bd6 {[%clk 0:02:59]} 9. O-O {[%clk 0:02:48]}  Bd7 {[%clk 0:02:56]} 10. Re1 {[%clk 0:02:47]}  Nge7 {[%clk 0:02:52]} 11. Ne3 {[%clk 0:02:36]}  f6 {[%clk 0:02:25]} 12. c4 {[%clk 0:02:19]}  O-O-O {[%clk 0:01:43]} 13. c5 {[%clk 0:01:53]}  Bf4 {[%clk 0:01:43]} 14. g3 {[%clk 0:01:52]}  Bh6 {[%clk 0:01:43]} 15. Nc2 {[%clk 0:01:28]}  Bxc1 {[%clk 0:01:42]} 16. Qxc1 {[%clk 0:01:16]}  e5 {[%clk 0:01:43]} 17. dxe5 {[%clk 0:01:12]}  fxe5 {[%clk 0:01:44]} 18. Bf1 {[%clk 0:01:01]}  Rdf8 {[%clk 0:01:42]} 19. Bg2 {[%clk 0:00:58]}  Bg4 {[%clk 0:01:39]} 20. Qe3 {[%clk 0:00:49]}  Bxf3 {[%clk 0:01:18]} 21. Bxf3 {[%clk 0:00:48]}  Kb8 {[%clk 0:01:19]} 22. Bg2 {[%clk 0:00:46]}  Nf5 {[%clk 0:00:54]} 23. Qd2 {[%clk 0:00:36]}  Ncd4 {[%clk 0:00:54]} 24. Nxd4 {[%clk 0:00:36]}  Nxd4 {[%clk 0:00:52]} 25. b4 {[%clk 0:00:32]}  Rd8 {[%clk 0:00:40]} 26. Rab1 {[%clk 0:00:29]}  Rhe8 {[%clk 0:00:38]} 27. a4 {[%clk 0:00:27]}  Qc6 {[%clk 0:00:24]} 28. b5 {[%clk 0:00:21]}  axb5 {[%clk 0:00:25]} 29. axb5 {[%clk 0:00:20]}  Qxc5 {[%clk 0:00:26]} 30. b6 {[%clk 0:00:20]}  Nc6 {[%clk 0:00:23]} 31. Rb2 {[%clk 0:00:13]}  Qd4 {[%clk 0:00:20]} 32. Qe2 {[%clk 0:00:11]}  e4 {[%clk 0:00:18]} 33. Ra1 {[%clk 0:00:11]}  Re6 {[%clk 0:00:05]} 34. Qb5 {[%clk 0:00:04]}  Qc4 {[%clk 0:00:04]} 35. Rba2 {[%clk 0:00:03]}  Kc8 {[%clk 0:00:04]} 36. Qxc4 {[%clk 0:00:03]}  dxc4 {[%clk 0:00:05]} 37. Bh3 {[%clk 0:00:03]}  Kd7 {[%clk 0:00:06]} 38. Rd2+ {[%clk 0:00:03]}  Ke7 {[%clk 0:00:07]} 39. Rxd8 {[%clk 0:00:03]}  Nxd8 {[%clk 0:00:08]} 40. Bxe6 {[%clk 0:00:03]}  Kxe6 {[%clk 0:00:08]} 41. Kf1 {[%clk 0:00:02]}  Nc6 {[%clk 0:00:08]} 42. Ke2 {[%clk 0:00:03]}  Kd5 {[%clk 0:00:08]} 43. Rd1+ {[%clk 0:00:02]}  Kc5 {[%clk 0:00:09]} 44. Rd7 {[%clk 0:00:02]}  Kxb6 {[%clk 0:00:09]} 45. Rxg7 {[%clk 0:00:02]}  Ka6 {[%clk 0:00:08]} 46. Rxh7 {[%clk 0:00:02]}  b5 {[%clk 0:00:09]} 47. h4 {[%clk 0:00:03]}  b4 {[%clk 0:00:08]} 48. Kd1 {[%clk 0:00:03]}  b3 {[%clk 0:00:09]} 49. h5 {[%clk 0:00:04]}  Kb5 {[%clk 0:00:09]} 50. Rb7+ {[%clk 0:00:04]}  Kc5 {[%clk 0:00:09]} 51. h6 {[%clk 0:00:04]} 1-0


[Site "https://www.chess.com"]

[Event "Titled Tuesday Blitz July 6 2021"]
[White "Kamsky, Gata"]
[Black "Vlachos, Anatole"]
[WhiteFideId "2000024"]
[BlackFideId "26093189"]
[WhiteElo "2644"]
[BlackElo "2350"]
[Result "1-0"]
[Round "06"]
[TimeControl "180+1"]
[Date "2021.07.06"]
[WhiteClock "0:00:18"]
[BlackClock "0:00:09"]

1. e4 {[%clk 0:03:00]}  g6 {[%clk 0:02:50]} 2. d4 {[%clk 0:02:59]}  Bg7 {[%clk 0:02:50]} 3. c3 {[%clk 0:02:59]}  d6 {[%clk 0:02:49]} 4. Nf3 {[%clk 0:02:58]}  Nd7 {[%clk 0:02:48]} 5. Bd3 {[%clk 0:02:56]}  e5 {[%clk 0:02:46]} 6. O-O {[%clk 0:02:56]}  Ngf6 {[%clk 0:02:46]} 7. Re1 {[%clk 0:02:55]}  O-O {[%clk 0:02:47]} 8. Bg5 {[%clk 0:02:53]}  h6 {[%clk 0:02:43]} 9. Bh4 {[%clk 0:02:53]}  Qe8 {[%clk 0:02:43]} 10. Na3 {[%clk 0:02:48]}  a6 {[%clk 0:02:37]} 11. Nc4 {[%clk 0:02:45]}  Nh5 {[%clk 0:02:35]} 12. Ne3 {[%clk 0:02:37]}  Nf4 {[%clk 0:02:34]} 13. Bc2 {[%clk 0:02:19]}  b6 {[%clk 0:01:57]} 14. a4 {[%clk 0:02:18]}  a5 {[%clk 0:01:54]} 15. Bg3 {[%clk 0:02:10]}  Nh5 {[%clk 0:01:52]} 16. Bb3 {[%clk 0:01:57]}  Nxg3 {[%clk 0:01:51]} 17. hxg3 {[%clk 0:01:56]}  Ra7 {[%clk 0:01:44]} 18. dxe5 {[%clk 0:01:24]}  dxe5 {[%clk 0:01:42]} 19. Qc2 {[%clk 0:01:11]}  Nc5 {[%clk 0:01:41]} 20. Bc4 {[%clk 0:01:07]}  Bd7 {[%clk 0:01:37]} 21. b3 {[%clk 0:01:07]}  h5 {[%clk 0:01:33]} 22. Rad1 {[%clk 0:01:03]}  Bh6 {[%clk 0:01:01]} 23. Nd5 {[%clk 0:01:02]}  Kg7 {[%clk 0:00:58]} 24. Qb2 {[%clk 0:00:30]}  Rb7 {[%clk 0:00:50]} 25. Qc2 {[%clk 0:00:28]}  c6 {[%clk 0:00:33]} 26. Ne3 {[%clk 0:00:28]}  Qe7 {[%clk 0:00:33]} 27. Bf1 {[%clk 0:00:26]}  Be6 {[%clk 0:00:32]} 28. Nc4 {[%clk 0:00:26]}  f6 {[%clk 0:00:32]} 29. Nfd2 {[%clk 0:00:24]}  Ra8 {[%clk 0:00:22]} 30. Ne3 {[%clk 0:00:22]}  b5 {[%clk 0:00:14]} 31. axb5 {[%clk 0:00:21]}  cxb5 {[%clk 0:00:15]} 32. b4 {[%clk 0:00:19]}  axb4 {[%clk 0:00:11]} 33. cxb4 {[%clk 0:00:19]}  Ra2 {[%clk 0:00:09]} 34. Qxc5 {[%clk 0:00:18]} 1-0


[Site "https://www.chess.com"]

[Event "Titled Tuesday Blitz July 6 2021"]
[White "Kobo, Ori"]
[Black "Budiarti, Farah Yumna"]
[WhiteFideId "2812320"]
[BlackFideId "7107331"]
[WhiteElo "2431"]
[BlackElo "2517"]
[Result "1-0"]
[Round "06"]
[TimeControl "180+1"]
[Date "2021.07.06"]
[WhiteClock "0:01:25"]
[BlackClock "0:01:25"]

1. e4 {[%clk 0:03:00]}  c6 {[%clk 0:02:58]} 2. Nf3 {[%clk 0:03:00]}  d5 {[%clk 0:02:59]} 3. e5 {[%clk 0:03:01]}  Bg4 {[%clk 0:02:59]} 4. Be2 {[%clk 0:03:01]}  e6 {[%clk 0:02:57]} 5. O-O {[%clk 0:03:01]}  c5 {[%clk 0:02:58]} 6. c4 {[%clk 0:03:01]}  d4 {[%clk 0:02:57]} 7. d3 {[%clk 0:03:01]}  Nc6 {[%clk 0:02:57]} 8. Nbd2 {[%clk 0:02:59]}  Nge7 {[%clk 0:02:56]} 9. a3 {[%clk 0:02:53]}  Ng6 {[%clk 0:02:56]} 10. Re1 {[%clk 0:02:51]}  Bxf3 {[%clk 0:02:53]} 11. Nxf3 {[%clk 0:02:46]}  Ngxe5 {[%clk 0:02:51]} 12. Nxe5 {[%clk 0:02:47]}  Nxe5 {[%clk 0:02:52]} 13. b4 {[%clk 0:02:33]}  cxb4 {[%clk 0:02:31]} 14. Qa4+ {[%clk 0:02:17]}  Qd7 {[%clk 0:02:24]} 15. axb4 {[%clk 0:02:16]}  Bd6 {[%clk 0:01:46]} 16. Bb2 {[%clk 0:02:04]}  Nc6 {[%clk 0:01:25]} 17. c5 {[%clk 0:01:25]} 1-0


[Site "https://www.chess.com"]

[Event "Titled Tuesday Blitz July 6 2021"]
[White "Korchmar, Vasiliy"]
[Black "Koelle, Tobias"]
[WhiteFideId "24131750"]
[BlackFideId "16207378"]
[WhiteElo "2370"]
[BlackElo "2364"]
[Result "0-1"]
[Round "06"]
[TimeControl "180+1"]
[Date "2021.07.06"]
[WhiteClock "0:01:01"]
[BlackClock "0:01:26"]

1. e4 {[%clk 0:03:00]}  c6 {[%clk 0:02:56]} 2. Nc3 {[%clk 0:02:57]}  g6 {[%clk 0:02:57]} 3. d4 {[%clk 0:02:56]}  Bg7 {[%clk 0:02:57]} 4. h4 {[%clk 0:02:51]}  h5 {[%clk 0:02:53]} 5. Be3 {[%clk 0:02:47]}  d5 {[%clk 0:02:52]} 6. e5 {[%clk 0:02:46]}  Nh6 {[%clk 0:02:51]} 7. Qd2 {[%clk 0:02:47]}  Nf5 {[%clk 0:02:47]} 8. Bf4 {[%clk 0:02:47]}  a5 {[%clk 0:02:36]} 9. O-O-O {[%clk 0:02:46]}  b5 {[%clk 0:02:33]} 10. Nf3 {[%clk 0:02:44]}  a4 {[%clk 0:02:21]} 11. a3 {[%clk 0:02:44]}  Na6 {[%clk 0:02:19]} 12. Na2 {[%clk 0:02:38]}  Qb6 {[%clk 0:02:10]} 13. Ng5 {[%clk 0:02:37]}  Nc7 {[%clk 0:02:09]} 14. Nb4 {[%clk 0:02:28]}  Ne6 {[%clk 0:02:08]} 15. Nxe6 {[%clk 0:02:29]}  Bxe6 {[%clk 0:02:09]} 16. c3 {[%clk 0:02:26]}  c5 {[%clk 0:01:54]} 17. dxc5 {[%clk 0:02:25]}  Qxc5 {[%clk 0:01:55]} 18. Nxd5 {[%clk 0:02:15]}  O-O-O {[%clk 0:01:45]} 19. Qe2 {[%clk 0:01:28]}  Bxd5 {[%clk 0:01:35]} 20. Qxb5 {[%clk 0:01:28]}  Qxb5 {[%clk 0:01:36]} 21. Bxb5 {[%clk 0:01:28]}  Bb3 {[%clk 0:01:37]} 22. Rxd8+ {[%clk 0:01:23]}  Rxd8 {[%clk 0:01:38]} 23. f3 {[%clk 0:01:20]}  Nxh4 {[%clk 0:01:36]} 24. Bg5 {[%clk 0:01:18]}  Nxg2 {[%clk 0:01:34]} 25. Bxe7 {[%clk 0:01:17]}  Bh6+ {[%clk 0:01:32]} 26. Kb1 {[%clk 0:01:17]}  Rd2 {[%clk 0:01:27]} 27. c4 {[%clk 0:01:05]}  Ne3 {[%clk 0:01:25]} 28. c5 {[%clk 0:01:05]}  Nd1 {[%clk 0:01:25]} 29. c6 {[%clk 0:01:00]}  Rxb2+ {[%clk 0:01:24]} 30. Ka1 {[%clk 0:01:00]}  Ra2+ {[%clk 0:01:25]} 31. Kb1 {[%clk 0:01:01]}  Nc3# {[%clk 0:01:26]} 0-1


[Site "https://www.chess.com"]

[Event "Titled Tuesday Blitz July 6 2021"]
[White "Kotsur, Pavel"]
[Black "Leenhouts, Koen"]
[WhiteFideId "13700278"]
[BlackFideId "1008439"]
[WhiteElo "2521"]
[BlackElo "2409"]
[Result "1-0"]
[Round "06"]
[TimeControl "180+1"]
[Date "2021.07.06"]
[WhiteClock "0:00:20"]
[BlackClock "0:00:08"]

1. e4 {[%clk 0:02:59]}  c5 {[%clk 0:02:36]} 2. Nf3 {[%clk 0:02:57]}  e6 {[%clk 0:02:36]} 3. d4 {[%clk 0:02:57]}  cxd4 {[%clk 0:02:37]} 4. Nxd4 {[%clk 0:02:57]}  Nc6 {[%clk 0:02:37]} 5. Nc3 {[%clk 0:02:57]}  Qc7 {[%clk 0:02:38]} 6. Be2 {[%clk 0:02:54]}  a6 {[%clk 0:02:36]} 7. O-O {[%clk 0:02:54]}  Nf6 {[%clk 0:02:36]} 8. Kh1 {[%clk 0:02:53]}  Be7 {[%clk 0:02:36]} 9. Be3 {[%clk 0:02:51]}  O-O {[%clk 0:02:35]} 10. f4 {[%clk 0:02:51]}  d6 {[%clk 0:02:35]} 11. Qe1 {[%clk 0:02:50]}  Nxd4 {[%clk 0:02:32]} 12. Bxd4 {[%clk 0:02:50]}  b5 {[%clk 0:02:33]} 13. a3 {[%clk 0:02:50]}  Bb7 {[%clk 0:02:32]} 14. Qg3 {[%clk 0:02:50]}  Rad8 {[%clk 0:02:26]} 15. Rae1 {[%clk 0:02:35]}  Rd7 {[%clk 0:02:09]} 16. Bd3 {[%clk 0:02:28]}  Nh5 {[%clk 0:02:04]} 17. Qf2 {[%clk 0:02:27]}  g6 {[%clk 0:01:43]} 18. f5 {[%clk 0:02:17]}  e5 {[%clk 0:01:38]} 19. Be3 {[%clk 0:02:14]}  Nf6 {[%clk 0:01:37]} 20. Bh6 {[%clk 0:02:11]}  Ng4 {[%clk 0:01:31]} 21. Qd2 {[%clk 0:02:08]}  Nxh6 {[%clk 0:01:29]} 22. Qxh6 {[%clk 0:02:08]}  Qd8 {[%clk 0:01:22]} 23. Qh3 {[%clk 0:01:50]}  Kg7 {[%clk 0:01:11]} 24. Nd5 {[%clk 0:01:34]}  Bxd5 {[%clk 0:01:09]} 25. exd5 {[%clk 0:01:34]}  Bf6 {[%clk 0:01:00]} 26. Be4 {[%clk 0:01:29]}  Rc7 {[%clk 0:00:53]} 27. Re2 {[%clk 0:01:27]}  Rc4 {[%clk 0:00:44]} 28. c3 {[%clk 0:01:23]}  g5 {[%clk 0:00:37]} 29. Qh5 {[%clk 0:01:00]}  h6 {[%clk 0:00:26]} 30. Qf3 {[%clk 0:00:56]}  a5 {[%clk 0:00:20]} 31. Rc1 {[%clk 0:00:50]}  b4 {[%clk 0:00:19]} 32. axb4 {[%clk 0:00:43]}  axb4 {[%clk 0:00:20]} 33. Rec2 {[%clk 0:00:39]}  b3 {[%clk 0:00:18]} 34. Re2 {[%clk 0:00:35]}  Qa5 {[%clk 0:00:19]} 35. Qd3 {[%clk 0:00:33]}  Rfc8 {[%clk 0:00:18]} 36. g3 {[%clk 0:00:33]}  Rd4 {[%clk 0:00:16]} 37. Qf3 {[%clk 0:00:31]}  Ra4 {[%clk 0:00:16]} 38. Kg2 {[%clk 0:00:30]}  Ra1 {[%clk 0:00:15]} 39. Rxa1 {[%clk 0:00:30]}  Qxa1 {[%clk 0:00:16]} 40. Qd3 {[%clk 0:00:30]}  Qc1 {[%clk 0:00:15]} 41. Qb5 {[%clk 0:00:28]}  Qd1 {[%clk 0:00:14]} 42. Bf3 {[%clk 0:00:26]}  Rc5 {[%clk 0:00:08]} 43. Qb6 {[%clk 0:00:25]}  Rxd5 {[%clk 0:00:08]} 44. Rf2 {[%clk 0:00:20]} 1-0


[Site "https://www.chess.com"]

[Event "Titled Tuesday Blitz July 6 2021"]
[White "Ljukin, Sergei"]
[Black "Abrashkin, Boris"]
[WhiteFideId "14102200"]
[BlackFideId "4120582"]
[WhiteElo "2309"]
[BlackElo "2594"]
[Result "1-0"]
[Round "06"]
[TimeControl "180+1"]
[Date "2021.07.06"]
[WhiteClock "0:00:08"]
[BlackClock "0:00:09"]

1. e4 {[%clk 0:02:48]}  c5 {[%clk 0:02:59]} 2. Nf3 {[%clk 0:02:48]}  Nf6 {[%clk 0:02:59]} 3. Nc3 {[%clk 0:02:47]}  d5 {[%clk 0:02:59]} 4. exd5 {[%clk 0:02:47]}  Nxd5 {[%clk 0:03:00]} 5. d4 {[%clk 0:02:48]}  Nc6 {[%clk 0:02:49]} 6. dxc5 {[%clk 0:02:45]}  Nxc3 {[%clk 0:02:49]} 7. Qxd8+ {[%clk 0:02:45]}  Kxd8 {[%clk 0:02:41]} 8. bxc3 {[%clk 0:02:45]}  Bg4 {[%clk 0:02:40]} 9. Nd4 {[%clk 0:02:44]}  Rc8 {[%clk 0:02:34]} 10. Rb1 {[%clk 0:02:42]}  e5 {[%clk 0:02:06]} 11. Nxc6+ {[%clk 0:02:26]}  Rxc6 {[%clk 0:02:07]} 12. Rxb7 {[%clk 0:02:23]}  Rc7 {[%clk 0:02:07]} 13. c6 {[%clk 0:02:10]}  Bc5 {[%clk 0:01:58]} 14. Bb5 {[%clk 0:02:05]}  Rxb7 {[%clk 0:01:55]} 15. cxb7 {[%clk 0:02:04]}  Kc7 {[%clk 0:01:55]} 16. Bc4 {[%clk 0:01:40]}  Rd8 {[%clk 0:01:29]} 17. f3 {[%clk 0:01:34]}  Bh5 {[%clk 0:01:24]} 18. Ke2 {[%clk 0:01:22]}  Kxb7 {[%clk 0:01:22]} 19. Rd1 {[%clk 0:01:15]}  Rxd1 {[%clk 0:01:22]} 20. Kxd1 {[%clk 0:01:15]}  Kc6 {[%clk 0:01:18]} 21. Ke2 {[%clk 0:01:10]}  f6 {[%clk 0:01:16]} 22. Be3 {[%clk 0:01:05]}  h6 {[%clk 0:01:15]} 23. Bd3 {[%clk 0:00:59]}  Bf7 {[%clk 0:01:14]} 24. Bxc5 {[%clk 0:00:47]}  Kxc5 {[%clk 0:01:15]} 25. a3 {[%clk 0:00:47]}  g5 {[%clk 0:01:10]} 26. g3 {[%clk 0:00:47]}  Bd5 {[%clk 0:00:57]} 27. Ke3 {[%clk 0:00:43]}  Bc6 {[%clk 0:00:55]} 28. f4 {[%clk 0:00:42]}  exf4+ {[%clk 0:00:31]} 29. gxf4 {[%clk 0:00:41]}  Bd5 {[%clk 0:00:32]} 30. Be4 {[%clk 0:00:16]}  Be6 {[%clk 0:00:29]} 31. Bd3 {[%clk 0:00:15]}  Bd5 {[%clk 0:00:26]} 32. Be4 {[%clk 0:00:14]}  a5 {[%clk 0:00:23]} 33. Bd3 {[%clk 0:00:12]}  Bc6 {[%clk 0:00:22]} 34. Be2 {[%clk 0:00:11]}  Bg2 {[%clk 0:00:20]} 35. Bd3 {[%clk 0:00:10]}  Bh3 {[%clk 0:00:12]} 36. Ke4 {[%clk 0:00:09]}  Be6 {[%clk 0:00:13]} 37. Ke3 {[%clk 0:00:09]}  Bd5 {[%clk 0:00:09]} 38. Be2 {[%clk 0:00:09]}  Bc6 {[%clk 0:00:09]} 39. Bd3 {[%clk 0:00:09]}  Bd5 {[%clk 0:00:10]} 40. Be2 {[%clk 0:00:09]}  Bc6 {[%clk 0:00:10]} 41. c4 {[%clk 0:00:06]}  Bb7 {[%clk 0:00:05]} 42. Bd3 {[%clk 0:00:06]}  Bc6 {[%clk 0:00:05]} 43. Be2 {[%clk 0:00:06]}  Be8 {[%clk 0:00:04]} 44. Bd3 {[%clk 0:00:05]}  Bf7 {[%clk 0:00:05]} 45. Ke4 {[%clk 0:00:05]}  Bg6+ {[%clk 0:00:05]} 46. Ke3 {[%clk 0:00:04]}  Bf7 {[%clk 0:00:05]} 47. Ke4 {[%clk 0:00:05]}  Bxc4 {[%clk 0:00:04]} 48. Kf5 {[%clk 0:00:05]}  Bxd3+ {[%clk 0:00:03]} 49. cxd3 {[%clk 0:00:05]}  Kd4 {[%clk 0:00:03]} 50. fxg5 {[%clk 0:00:04]}  fxg5 {[%clk 0:00:04]} 51. Kg6 {[%clk 0:00:04]}  Kxd3 {[%clk 0:00:04]} 52. Kxh6 {[%clk 0:00:05]}  Kc3 {[%clk 0:00:05]} 53. Kxg5 {[%clk 0:00:05]}  Kb3 {[%clk 0:00:04]} 54. h4 {[%clk 0:00:06]}  Kxa3 {[%clk 0:00:05]} 55. h5 {[%clk 0:00:06]}  a4 {[%clk 0:00:06]} 56. h6 {[%clk 0:00:07]}  Kb4 {[%clk 0:00:07]} 57. h7 {[%clk 0:00:08]}  a3 {[%clk 0:00:08]} 58. h8=Q {[%clk 0:00:08]}  a2 {[%clk 0:00:09]} 59. Qa1 {[%clk 0:00:08]} 1-0


[Site "https://www.chess.com"]